{"text_format":"3","workbook":"xlsx","n_sheets":1,"sheets":["Лист1"],"read":"whole","date_system":"1900"}

{"sheet":"Лист1","index":0,"n_rows":22,"n_cols":32,"rows_kept":22}
["ОУ","Углублённое изучение предметов в 10  классе универсального профиля (перечислить предметы)","всего 10-11 классов","из низ кол-во 10 классов","кол-во уч-ся в 10 кл","из них кол-во 11 классов","кол-во уч-ся в 11 кл","универсальные классы","из низ кол-во 10 классов","кол-во уч-ся в 10 кл","из них кол-во 11 классов","кол-во уч-ся в 11 кл","хим-биол профиль","из низ кол-во 10 классов","кол-во уч-ся в 10 кл","из них кол-во 11 классов","кол-во уч-ся в 11 кл","физ-хим профиль","из низ кол-во 10 классов","кол-во уч-ся в 10 кл","из них кол-во 11 классов","кол-во уч-ся в 11 кл","технолог профиль","из низ кол-во 10 классов","кол-во уч-ся в 10 кл","из них кол-во 11 классов","кол-во уч-ся в 11 кл","соц-экон профиль","из низ кол-во 10 классов","кол-во уч-ся в 10 кл","из них кол-во 11 классов","кол-во уч-ся в 11 кл"]
["МБОО Лицей № 2 г. Буинска РТ","математика, экономика, история",4,2,35,2,39,2,1,24,1,24,0,{"$nulls":4},0,{"$nulls":4},0,{"$nulls":4},2,1,11,1,15]
["МБОУ Адав-Тулумбаевская СОШ БМР РТ","русский язык, математика",2,1,5,1,3,2,1,5,1,3,0,{"$nulls":4},0,{"$nulls":4},0,{"$nulls":4},0]
["МБОУ Аксунская СОШ БМР РТ","математика, физика, русс яз",2,1,4,1,5,2,1,4,1,5,0,{"$nulls":4},0,{"$nulls":4},0,{"$nulls":4},0]
["МБОУ Альшеевская СОШ БМР РТ","русский язык, математика",2,1,5,1,8,2,1,5,1,8,0,0,0,0,0,0,0,0,0,0,0,0,0,0,0,0,0,0,0,0]
["МБОУ Альшиховская СОШ БМР РТ","русский язык, мтаематика, биолоия",2,1,3,1,2,2,1,3,1,2,0,{"$nulls":4},0,{"$nulls":4},0,{"$nulls":4},0]
["МБОУ Бюргановская СОШ БМР РТ","русский язык, математика, обществознание",2,1,9,1,5,2,1,9,1,5,0,{"$nulls":4},0,{"$nulls":4},0,{"$nulls":4},0]
["МБОУ Гимназия № 5 г.Буинска РТ",null,2,1,21,1,12,0,{"$nulls":4},0,{"$nulls":4},0,{"$nulls":4},1,1,21,null,null,1,null,null,1,12]
["МБОУ Гимназия им. М.М.Вахитова г.Буинска РТ","рус яз, физика,матем",2,1,12,1,4,1,null,null,1,4,1,1,12,0,0,0,0,0,0,0,0,0,0,0,0,0,0,0,0,0]
["МБОУ Киятская СОШ БМР РТ","математика, биология, химия",2,1,4,1,5,1,1,4,0,0,1,0,0,1,5,0,0,0,0,0,0,0,0,0,0,0,0,0,0,0]
["МБОУ Лицей-интернат г. Буинска РТ",null,2,1,11,1,26,0,{"$nulls":4},0,{"$nulls":4},1,null,null,1,26,1,1,11,null,null,0]
["МБОУ Новотинчалинская СОШ им. Н.Г.Фаизова БМР РТ","русский язык, математика, биология",1,1,5,0,0,1,1,5,0,0,0,0,0,0,0,0,0,0,0,0,0,0,0,0,0,0,0,0,0,0]
["МБОУ Ново-Чечкабская СОШ БМР РТ","математика, русс яз",2,1,2,1,7,1,1,2,null,null,0,{"$nulls":4},0,{"$nulls":4},0,null,null,1,7,0]
["МБОУ Протопоповская СОШ БМР РТ","химия, биология, математика, русс яз",2,1,2,1,2,2,{"$nulls":4},0,{"$nulls":4},0,{"$nulls":4},0,{"$nulls":4},0]
["МБОУ Рунгинская СОШ БМР РТ","математика, обществознание, физика, биология",2,1,4,1,4,1,1,4,null,null,0,{"$nulls":4},1,{"$nulls":4},0,{"$nulls":4},0]
["МБОУ СОШ № 1 г. Буинска РТ",null,2,1,17,1,17,0,0,0,0,null,0,{"$nulls":4},0,{"$nulls":4},0,{"$nulls":4},2,1,17,1,17]
["МБОУ СОШ им.ак. Р.З.Сагдеева БМР РТ",null,3,2,32,1,32,2,1,14,1,19,0,0,0,0,0,0,0,0,0,0,0,0,0,0,0,1,1,18,0,0]
["МБОУ Старо-Студенецкая СОШ БМР РТ","русский язык, математика,биология",2,1,2,1,2,2,1,{"$f":"SUM(A18:I19)","v":25},1,2,0,0,0,0,0,0,0,0,0,0,0,0,0,0,0,0,0,0,0,0]
["МБОУ Черки-Кильдуразская СОШ БМР РТ","русский язык, литература, математика",2,1,3,1,4,2,1,3,1,4,0,0,0,0,0,0,0,0,0,0,0,0,0,0,0,0,0,0,0,0]
["МБОУ Чувашско-Кищаковская СОШ БМР РТ","русккий язык, математика",2,1,3,1,4,2,1,3,1,4,0,0,0,0,0,0,0,0,0,0,0,0,0,0,0,0,0,0,0,0]
["МБОУ Энтуганская СОШ БМР РТ","русский язык, литература, математика",2,1,4,1,3,2,1,4,1,3,0,0,0,0,0,0,0,0,0,0,0,0,0,0,0,0,0,0,0,0]
[null,null,{"$f":"SUM(C2:C21)","v":42},22,183,20,184,29,15,114,12,83,2,1,12,1,5,2,0,0,1,26,2,2,32,1,7,6,3,46,3,44]